{"text_format":"1","workbook":"xlsx","n_sheets":2,"sheets":["Calendar","Lists"],"not_rendered":{"charts":0,"images":1,"macros":1,"external_links":0,"defined_names":3,"comments":0,"pivot_tables":0},"unopened":[],"bounds":{"document_bytes":16777216,"sheet_cells":100000,"rows_first":2000,"rows_last":500,"rows_between":2000,"halvings":0,"cell_chars":16384,"cell_head_chars":4096},"cells_cut":0,"cells_raw":0,"read":"whole","date_system":"1900"}

{"sheet":"Calendar","index":0,"n_rows":4,"n_cols":3,"rows_kept":4,"cut":false,"hidden":false,"merged":[]}
[]
[]
[null,null,{"$f":"TEXT(TODAY(),\"rrrr mmmm dd\")","v":"2016 listopad 26"}]
[null,null,{"$f":"\"Days till Christmas: \" &IF(MONTH(TODAY())=12, 25-DAY(TODAY()),\"??\")","v":"Days till Christmas: ??"}]

{"sheet":"Lists","index":1,"n_rows":25,"n_cols":5,"rows_kept":25,"cut":false,"hidden":false,"merged":[]}
["Day","Formula",null,null,"You can create your own formulas in "]
[1,{"$f":"2 - 1","v":1},null,null,"column B, or just enter numbers, from 1-24"]
[2,{"$f":" 6 / 3","v":2}]
[3,{"$f":" 12 / 4","v":3},null,null,"If you change the formulas on this sheet"]
[4,{"$f":" 8 / 2","v":4},null,null,"click the button to update the "]
[5,{"$f":" 3 + 2","v":5},null,null,"Advent Calendar"]
[6,{"$f":" 3 * 2","v":6}]
[7,{"$f":" 4 + 3","v":7},null,null,"NOTE: This worksheet is set to show formulas"]
[8,{"$f":" 3 + 5","v":8},null,null,"To switch between the formulas and Results"]
[9,{"$f":" 4 + 5","v":9},null,null,"Click this button, OR"]
[10,{"$f":" 5 * 2","v":10},null,null,"go to the Formulas tab on the Ribbon"]
[11,{"$f":" 7 + 4","v":11},null,null,"and click the Show Formulas command"]
[12,{"$f":" 4 * 3","v":12},null,null,"to turn that setting off"]
[13,{"$f":" 8 + 5","v":13}]
[14,{"$f":" 6 + 8","v":14}]
[15,{"$f":" 8 + 7","v":15},null,"TEST MODE","Change this to Yes, if you want to test the calendar"]
[16,{"$f":" 4 * 4","v":16},null,"No"," before December arrives."]
[17,{"$f":" 9 + 8","v":17}]
[18,{"$f":" 6 * 3","v":18}]
[19,{"$f":" 9*2+1","v":19}]
[20,{"$f":" 5 * 4","v":20}]
[21,{"$f":" 9 * 2 + 3","v":21}]
[22,{"$f":" 11 * 2","v":22}]
[23,{"$f":" 8 * 3 - 1","v":23}]
[24,{"$f":" 8 * 3","v":24}]